[Event "Early-Titled-Tuesday-Blitz-February-06-2024"]
[Site "Chess.com"]
[Date "2024.02.06"]
[Round "1"]
[White "Happy1712Drummer"]
[Black "Meri-Arabidze"]
[Result "0-1"]
[WhiteElo "2413"]
[BlackElo "2742"]
[TimeControl "180+1"]
[EndTime "8:08:47 PST"]
[Termination "Meri-Arabidze won by resignation"]

1. e4 {[%clk 0:02:58.5]} 1... c5 {[%clk 0:03:00.1]} 2. Nf3 {[%clk 0:02:58.2]}
2... e6 {[%clk 0:03:00.7]} 3. c3 {[%clk 0:02:57.9]} 3... Nf6 {[%clk 0:02:58.8]}
4. e5 {[%clk 0:02:57.5]} 4... Nd5 {[%clk 0:02:59.4]} 5. d4 {[%clk 0:02:57.9]}
5... cxd4 {[%clk 0:02:59.7]} 6. cxd4 {[%clk 0:02:58.1]} 6... b6 {[%clk
0:03:00.4]} 7. Bc4 {[%clk 0:02:53.6]} 7... Ba6 {[%clk 0:02:55.8]} 8. Bxa6 {[%clk
0:02:47.8]} 8... Nxa6 {[%clk 0:02:55.4]} 9. O-O {[%clk 0:02:48.5]} 9... Be7
{[%clk 0:02:52.8]} 10. Nc3 {[%clk 0:02:46]} 10... Nxc3 {[%clk 0:02:48.9]} 11.
bxc3 {[%clk 0:02:46.9]} 11... O-O {[%clk 0:02:47.5]} 12. Qd3 {[%clk 0:02:44.3]}
12... Nc7 {[%clk 0:02:38.7]} 13. Bd2 {[%clk 0:02:40.3]} 13... d5 {[%clk
0:02:33.2]} 14. Rfe1 {[%clk 0:02:34.9]} 14... b5 {[%clk 0:02:22.4]} 15. Re3
{[%clk 0:02:16.6]} 15... a6 {[%clk 0:02:19.5]} 16. Rae1 {[%clk 0:02:16.4]} 16...
Rc8 {[%clk 0:02:16.5]} 17. h4 {[%clk 0:02:15.9]} 17... h6 {[%clk 0:02:03.4]} 18.
Nh2 {[%clk 0:02:02.1]} 18... Bxh4 {[%clk 0:02:00.9]} 19. Rh3 {[%clk 0:01:59.9]}
19... Bg5 {[%clk 0:01:34.7]} 20. f4 {[%clk 0:01:55.3]} 20... Bh4 {[%clk
0:01:34.3]} 21. g3 {[%clk 0:01:42]} 21... Be7 {[%clk 0:01:33.3]} 22. Kg2 {[%clk
0:01:23.7]} 22... f5 {[%clk 0:01:31.1]} 23. exf6 {[%clk 0:01:18.6]} 23... Bxf6
{[%clk 0:01:31.4]} 24. Ng4 {[%clk 0:01:18.5]} 24... Qe8 {[%clk 0:01:10.8]} 25.
f5 {[%clk 0:00:52.7]} 25... Rd8 {[%clk 0:00:54.5]} 26. Bxh6 {[%clk 0:00:32.5]}
26... Qf7 {[%clk 0:00:46.6]} 27. Bd2 {[%clk 0:00:20.4]} 27... exf5 {[%clk
0:00:43.8]} 28. Reh1 {[%clk 0:00:20.6]} 28... Qg6 {[%clk 0:00:39.1]} 29. Nxf6+
{[%clk 0:00:14]} 29... Qxf6 {[%clk 0:00:35.1]} 30. Qf3 {[%clk 0:00:07]} 30...
Ne6 {[%clk 0:00:29.6]} 31. Qh5 {[%clk 0:00:06.9]} 31... f4 {[%clk 0:00:20.5]}
32. Bxf4 {[%clk 0:00:05.9]} 32... Nxf4+ {[%clk 0:00:18.9]} 33. gxf4 {[%clk
0:00:06.3]} 33... Rde8 {[%clk 0:00:15.6]} 34. Qh7+ {[%clk 0:00:06.2]} 34... Kf7
{[%clk 0:00:15.6]} 35. Rf3 {[%clk 0:00:05.9]} 35... Qg6+ {[%clk 0:00:15.1]} 36.
Qxg6+ {[%clk 0:00:05.9]} 36... Kxg6 {[%clk 0:00:16]} 37. Rhf1 {[%clk 0:00:05.7]}
37... Kf7 {[%clk 0:00:15.9]} 38. R1f2 {[%clk 0:00:05.5]} 38... Re4 {[%clk
0:00:16.2]} 39. Kg3 {[%clk 0:00:05.3]} 39... Rc8 {[%clk 0:00:15.6]} 40. Rc2
{[%clk 0:00:05.3]} 40... b4 {[%clk 0:00:15.2]} 41. Rd3 {[%clk 0:00:04.6]} 41...
a5 {[%clk 0:00:15.3]} 42. Kf3 {[%clk 0:00:04.9]} 42... Kf6 {[%clk 0:00:15.4]}
43. Rdd2 {[%clk 0:00:02.1]} 43... bxc3 {[%clk 0:00:15.5]} 44. Rd3 {[%clk
0:00:02.7]} 44... g6 {[%clk 0:00:14.8]} 45. Rcxc3 {[%clk 0:00:03.1]} 45... Rxc3
{[%clk 0:00:15.1]} 46. Rxc3 {[%clk 0:00:04]} 46... Rxd4 {[%clk 0:00:16]} 47. Rc5
{[%clk 0:00:04.1]} 47... a4 {[%clk 0:00:15.9]} 48. Ra5 {[%clk 0:00:04.4]} 48...
Ke6 {[%clk 0:00:16.1]} 49. Ra6+ {[%clk 0:00:04.5]} 49... Kf5 {[%clk 0:00:16.7]}
50. Ra5 {[%clk 0:00:04.1]} 50... Rd3+ {[%clk 0:00:17]} 51. Ke2 {[%clk
0:00:04.3]} 51... Ke4 {[%clk 0:00:16.8]} 52. Rxa4+ {[%clk 0:00:04.4]} 52... d4
{[%clk 0:00:17.4]} 53. Ra6 {[%clk 0:00:04.2]} 53... Re3+ {[%clk 0:00:17.7]} 54.
Kd2 {[%clk 0:00:04.1]} 54... Rg3 {[%clk 0:00:17.6]} 55. Re6+ {[%clk 0:00:03.1]}
55... Kxf4 {[%clk 0:00:17.6]} 56. a4 {[%clk 0:00:03.8]} 56... g5 {[%clk
0:00:15.7]} 57. a5 {[%clk 0:00:03.9]} 57... Ra3 {[%clk 0:00:15.9]} 58. a6 {[%clk
0:00:04.4]} 58... g4 {[%clk 0:00:16.4]} 59. Rf6+ {[%clk 0:00:04.9]} 59... Kg3
{[%clk 0:00:16.8]} 60. Rg6 {[%clk 0:00:01.9]} 60... Kf3 {[%clk 0:00:16.2]} 61.
Rf6+ {[%clk 0:00:02.4]} 61... Kg2 {[%clk 0:00:16.3]} 62. Rg6 {[%clk 0:00:02.9]}
62... g3 {[%clk 0:00:16.7]} 63. Ke2 {[%clk 0:00:03.6]} 63... d3+ {[%clk
0:00:14.5]} 64. Kd2 {[%clk 0:00:04.1]} 64... Kf2 {[%clk 0:00:14.4]} 65. Rf6+
{[%clk 0:00:04.6]} 65... Kg1 {[%clk 0:00:14.7]} 66. Rg6 {[%clk 0:00:05.3]} 66...
g2 {[%clk 0:00:15.2]} 67. Ke3 {[%clk 0:00:04.4]} 67... Kf1 {[%clk 0:00:12.3]}
68. Rf6+ {[%clk 0:00:04.2]} 68... Ke1 {[%clk 0:00:12.8]} 69. Rg6 {[%clk
0:00:04.9]} 69... d2+ {[%clk 0:00:13.4]} 70. Ke4 {[%clk 0:00:04.6]} 70... d1=Q
{[%clk 0:00:13.3]} 71. Rxg2 {[%clk 0:00:05]} 71... Qf3+ {[%clk 0:00:13.5]} 0-1

[Event "Early-Titled-Tuesday-Blitz-February-06-2024"]
[Site "Chess.com"]
[Date "2024.02.06"]
[Round "1"]
[White "MokshAD1603"]
[Black "ChEsper99"]
[Result "1/2-1/2"]
[WhiteElo "2577"]
[BlackElo "2210"]
[TimeControl "180+1"]
[EndTime "8:08:48 PST"]
[Termination "Game drawn - insufficient material"]

1. d4 {[%clk 0:02:41.2]} 1... Nf6 {[%clk 0:02:58.6]} 2. c4 {[%clk 0:02:40.7]}
2... e6 {[%clk 0:02:57.8]} 3. Nc3 {[%clk 0:02:39.7]} 3... Bb4 {[%clk 0:02:58.4]}
4. e3 {[%clk 0:02:38.2]} 4... O-O {[%clk 0:02:54]} 5. Bd2 {[%clk 0:02:38.8]}
5... d5 {[%clk 0:02:48.6]} 6. Nf3 {[%clk 0:02:38.2]} 6... b6 {[%clk 0:02:48.5]}
7. cxd5 {[%clk 0:02:37.6]} 7... exd5 {[%clk 0:02:47.9]} 8. Bd3 {[%clk 0:02:37]}
8... Bb7 {[%clk 0:02:39.6]} 9. Qc2 {[%clk 0:02:36.9]} 9... c5 {[%clk 0:02:33.9]}
10. dxc5 {[%clk 0:02:32.3]} 10... bxc5 {[%clk 0:02:33.8]} 11. O-O {[%clk
0:02:31.9]} 11... Nc6 {[%clk 0:02:12]} 12. Rfd1 {[%clk 0:02:23]} 12... Rc8
{[%clk 0:02:09.9]} 13. a3 {[%clk 0:02:07.1]} 13... Ba5 {[%clk 0:01:58.8]} 14.
Bf5 {[%clk 0:02:04.6]} 14... Rb8 {[%clk 0:01:50.8]} 15. Na4 {[%clk 0:01:55.6]}
15... c4 {[%clk 0:01:24.9]} 16. Nc5 {[%clk 0:01:54.2]} 16... Bc8 {[%clk
0:01:16.3]} 17. Bxc8 {[%clk 0:01:20.2]} 17... Qxc8 {[%clk 0:01:16.6]} 18. Bc3
{[%clk 0:01:12.7]} 18... Bxc3 {[%clk 0:01:05]} 19. Qxc3 {[%clk 0:01:13.6]} 19...
Rd8 {[%clk 0:01:00.8]} 20. Rac1 {[%clk 0:01:11.9]} 20... Ne7 {[%clk 0:00:50.4]}
21. Qa5 {[%clk 0:01:04.7]} 21... Nc6 {[%clk 0:00:42]} 22. Qa4 {[%clk 0:01:02.9]}
22... Rb6 {[%clk 0:00:26.1]} 23. b4 {[%clk 0:00:59.3]} 23... cxb3 {[%clk
0:00:20.4]} 24. Nxb3 {[%clk 0:00:58.7]} 24... Qa6 {[%clk 0:00:16.9]} 25. Qxa6
{[%clk 0:00:48.5]} 25... Rxa6 {[%clk 0:00:17.8]} 26. a4 {[%clk 0:00:49.2]} 26...
Ne7 {[%clk 0:00:15.3]} 27. Rc7 {[%clk 0:00:46.4]} 27... Rd7 {[%clk 0:00:11.2]}
28. Rdc1 {[%clk 0:00:40.1]} 28... Rxc7 {[%clk 0:00:06.7]} 29. Rxc7 {[%clk
0:00:41]} 29... Kf8 {[%clk 0:00:07.1]} 30. Nc5 {[%clk 0:00:37.4]} 30... Rc6
{[%clk 0:00:04.8]} 31. Rxc6 {[%clk 0:00:28]} 31... Nxc6 {[%clk 0:00:05.7]} 32.
Kf1 {[%clk 0:00:28.3]} 32... Ke7 {[%clk 0:00:06.3]} 33. Ke2 {[%clk 0:00:28.7]}
33... Kd6 {[%clk 0:00:07]} 34. Nb3 {[%clk 0:00:28]} 34... Ne4 {[%clk 0:00:07.6]}
35. a5 {[%clk 0:00:23.3]} 35... a6 {[%clk 0:00:05]} 36. Ne1 {[%clk 0:00:20]}
36... f6 {[%clk 0:00:05]} 37. Nd3 {[%clk 0:00:20.1]} 37... Nc3+ {[%clk
0:00:03.1]} 38. Kd2 {[%clk 0:00:20]} 38... Ne4+ {[%clk 0:00:03.8]} 39. Kc2
{[%clk 0:00:19.8]} 39... h5 {[%clk 0:00:03.2]} 40. f3 {[%clk 0:00:20.2]} 40...
Ng5 {[%clk 0:00:02.5]} 41. Kc3 {[%clk 0:00:19.3]} 41... Ne6 {[%clk 0:00:02.9]}
42. h4 {[%clk 0:00:18.8]} 42... g5 {[%clk 0:00:03.1]} 43. hxg5 {[%clk
0:00:19.7]} 43... fxg5 {[%clk 0:00:03.5]} 44. Nf2 {[%clk 0:00:19.2]} 44... h4
{[%clk 0:00:03.7]} 45. e4 {[%clk 0:00:19.5]} 45... Nc5 {[%clk 0:00:03.8]} 46.
exd5 {[%clk 0:00:15.8]} 46... Kxd5 {[%clk 0:00:03.9]} 47. Nxc5 {[%clk
0:00:15.8]} 47... Kxc5 {[%clk 0:00:04.8]} 48. Ne4+ {[%clk 0:00:16.7]} 48... Kb5
{[%clk 0:00:05.2]} 49. Nxg5 {[%clk 0:00:17.6]} 49... Kxa5 {[%clk 0:00:05.7]} 50.
f4 {[%clk 0:00:17.8]} 50... Kb5 {[%clk 0:00:05.7]} 51. Nf3 {[%clk 0:00:18.5]}
51... a5 {[%clk 0:00:06]} 52. Nxh4 {[%clk 0:00:18.9]} 52... a4 {[%clk
0:00:06.2]} 53. Nf3 {[%clk 0:00:19.5]} 53... Kc5 {[%clk 0:00:06.2]} 54. Nd2
{[%clk 0:00:19.5]} 54... Kd5 {[%clk 0:00:05.3]} 55. g4 {[%clk 0:00:19.6]} 55...
a3 {[%clk 0:00:03.6]} 56. Kb3 {[%clk 0:00:19.5]} 56... Kd4 {[%clk 0:00:04.2]}
57. g5 {[%clk 0:00:18.3]} 57... Ne7 {[%clk 0:00:02.8]} 58. f5 {[%clk 0:00:05.7]}
58... Ke5 {[%clk 0:00:02.7]} 59. f6 {[%clk 0:00:05.8]} 59... Ng6 {[%clk
0:00:02.5]} 60. Nf3+ {[%clk 0:00:06.2]} 60... Kf5 {[%clk 0:00:02.6]} 61. Kxa3
{[%clk 0:00:07.1]} 61... Kg4 {[%clk 0:00:01.7]} 62. f7 {[%clk 0:00:06.3]} 62...
Kxf3 {[%clk 0:00:01.2]} 63. Kb4 {[%clk 0:00:07.2]} 63... Kg4 {[%clk 0:00:01.5]}
64. Kc5 {[%clk 0:00:08.1]} 64... Kxg5 {[%clk 0:00:02.2]} 65. Kd6 {[%clk
0:00:09]} 65... Kf6 {[%clk 0:00:02.7]} 66. Kd7 {[%clk 0:00:06.9]} 66... Kxf7
{[%clk 0:00:03.2]} 1/2-1/2

[Event "Early-Titled-Tuesday-Blitz-February-06-2024"]
[Site "Chess.com"]
[Date "2024.02.06"]
[Round "1"]
[White "boguszp"]
[Black "Juwen"]
[Result "0-1"]
[WhiteElo "2074"]
[BlackElo "2555"]
[TimeControl "180+1"]
[EndTime "8:08:51 PST"]
[Termination "Juwen won by checkmate"]

1. d4 {[%clk 0:02:58.3]} 1... Nf6 {[%clk 0:02:59.4]} 2. Bf4 {[%clk 0:02:57.2]}
2... d5 {[%clk 0:02:58.6]} 3. e3 {[%clk 0:02:55.9]} 3... c5 {[%clk 0:02:57.6]}
4. c3 {[%clk 0:02:55.5]} 4... Nc6 {[%clk 0:02:55.1]} 5. Nd2 {[%clk 0:02:55.8]}
5... e6 {[%clk 0:02:55.4]} 6. Bd3 {[%clk 0:02:54.9]} 6... Bd6 {[%clk 0:02:54.1]}
7. Bg3 {[%clk 0:02:53.7]} 7... e5 {[%clk 0:02:50.5]} 8. dxe5 {[%clk 0:02:51.8]}
8... Nxe5 {[%clk 0:02:51.4]} 9. Bxe5 {[%clk 0:02:48.3]} 9... Bxe5 {[%clk
0:02:50.2]} 10. Ngf3 {[%clk 0:02:48.9]} 10... Bc7 {[%clk 0:02:49.3]} 11. O-O
{[%clk 0:02:46.1]} 11... O-O {[%clk 0:02:49.4]} 12. e4 {[%clk 0:02:39.9]} 12...
Re8 {[%clk 0:02:45.5]} 13. exd5 {[%clk 0:02:36.2]} 13... Qxd5 {[%clk 0:02:43.5]}
14. Bc4 {[%clk 0:02:32.7]} 14... Qh5 {[%clk 0:02:41.1]} 15. Qb3 {[%clk
0:02:27.5]} 15... b6 {[%clk 0:02:24.8]} 16. Rfe1 {[%clk 0:02:21.7]} 16... Bb7
{[%clk 0:02:22.9]} 17. h3 {[%clk 0:01:55.9]} 17... h6 {[%clk 0:02:10.1]} 18.
Rxe8+ {[%clk 0:01:53.5]} 18... Rxe8 {[%clk 0:02:09.1]} 19. Re1 {[%clk 0:01:54]}
19... Qg6 {[%clk 0:01:41]} 20. Rxe8+ {[%clk 0:01:47.7]} 20... Nxe8 {[%clk
0:01:41.9]} 21. Bd5 {[%clk 0:01:43.6]} 21... Bc8 {[%clk 0:01:34.7]} 22. Be4
{[%clk 0:01:41.3]} 22... Qe6 {[%clk 0:01:31.4]} 23. Qxe6 {[%clk 0:01:39.7]}
23... Bxe6 {[%clk 0:01:32.3]} 24. b3 {[%clk 0:01:38]} 24... Nf6 {[%clk
0:01:32.1]} 25. Bc6 {[%clk 0:01:36.7]} 25... Nd5 {[%clk 0:01:27.8]} 26. Ne4
{[%clk 0:01:31.6]} 26... Ne7 {[%clk 0:01:19.4]} 27. Bb7 {[%clk 0:01:30.3]} 27...
f5 {[%clk 0:01:18.9]} 28. Ned2 {[%clk 0:01:26.5]} 28... Nd5 {[%clk 0:01:19]} 29.
Bxd5 {[%clk 0:01:22.3]} 29... Bxd5 {[%clk 0:01:19.9]} 30. Kf1 {[%clk 0:01:21.6]}
30... Kf7 {[%clk 0:01:19.5]} 31. Ke2 {[%clk 0:01:22.1]} 31... g5 {[%clk
0:01:19.5]} 32. Kd3 {[%clk 0:01:22.5]} 32... Bc6 {[%clk 0:01:10.1]} 33. Ne1
{[%clk 0:01:20]} 33... Kf6 {[%clk 0:01:07.6]} 34. f3 {[%clk 0:01:19.9]} 34... h5
{[%clk 0:01:07.5]} 35. Nc2 {[%clk 0:01:19.5]} 35... f4 {[%clk 0:00:47.6]} 36. b4
{[%clk 0:01:13.5]} 36... cxb4 {[%clk 0:00:41.2]} 37. Nxb4 {[%clk 0:01:09.9]}
37... Bb7 {[%clk 0:00:40.4]} 38. Nc4 {[%clk 0:01:06.9]} 38... Kf5 {[%clk
0:00:35.2]} 39. Kd4 {[%clk 0:01:05.5]} 39... Ke6 {[%clk 0:00:23]} 40. Nd2 {[%clk
0:01:01.2]} 40... g4 {[%clk 0:00:22.7]} 41. hxg4 {[%clk 0:01:00.1]} 41... hxg4
{[%clk 0:00:23.6]} 42. c4 {[%clk 0:00:57.8]} 42... Be5+ {[%clk 0:00:23]} 43. Kd3
{[%clk 0:00:56.3]} 43... Bd6 {[%clk 0:00:23.3]} 44. Nc2 {[%clk 0:00:55.1]} 44...
Bc5 {[%clk 0:00:22.5]} 45. Nd4+ {[%clk 0:00:54.6]} 45... Ke5 {[%clk 0:00:22.7]}
46. N4b3 {[%clk 0:00:53.4]} 46... Be3 {[%clk 0:00:22.4]} 47. Nf1 {[%clk
0:00:48.8]} 47... gxf3 {[%clk 0:00:15.2]} 48. gxf3 {[%clk 0:00:46.8]} 48... Bf2
{[%clk 0:00:13.6]} 49. Nfd2 {[%clk 0:00:46.1]} 49... a5 {[%clk 0:00:12.8]} 50.
Nc1 {[%clk 0:00:41.5]} 50... Be3 {[%clk 0:00:12.3]} 51. Ncb3 {[%clk 0:00:36.2]}
51... a4 {[%clk 0:00:12.8]} 52. Nc1 {[%clk 0:00:30.8]} 52... Bxd2 {[%clk
0:00:13.5]} 53. Kxd2 {[%clk 0:00:31]} 53... Bxf3 {[%clk 0:00:14.2]} 54. Nd3+
{[%clk 0:00:30.3]} 54... Kf5 {[%clk 0:00:14.6]} 55. Nb4 {[%clk 0:00:29]} 55...
Be4 {[%clk 0:00:14.1]} 56. Nd5 {[%clk 0:00:24.2]} 56... Bxd5 {[%clk 0:00:13.8]}
57. cxd5 {[%clk 0:00:24.5]} 57... Ke5 {[%clk 0:00:14.5]} 58. d6 {[%clk
0:00:20.9]} 58... Kxd6 {[%clk 0:00:14.7]} 59. Kd3 {[%clk 0:00:21.1]} 59... Ke5
{[%clk 0:00:15.6]} 60. Ke2 {[%clk 0:00:20.8]} 60... Ke4 {[%clk 0:00:16.3]} 61.
Kf2 {[%clk 0:00:21]} 61... f3 {[%clk 0:00:17.2]} 62. Kf1 {[%clk 0:00:20.9]}
62... Kf4 {[%clk 0:00:18.1]} 63. Kf2 {[%clk 0:00:20.9]} 63... Ke4 {[%clk
0:00:17.8]} 64. a3 {[%clk 0:00:20]} 64... b5 {[%clk 0:00:18.7]} 65. Kf1 {[%clk
0:00:20.1]} 65... Ke3 {[%clk 0:00:19.1]} 66. Ke1 {[%clk 0:00:20.1]} 66... Kd3
{[%clk 0:00:19.8]} 67. Kf2 {[%clk 0:00:20]} 67... Kc3 {[%clk 0:00:20.7]} 68.
Kxf3 {[%clk 0:00:20.3]} 68... Kb3 {[%clk 0:00:21.4]} 69. Ke3 {[%clk 0:00:20.7]}
69... Kxa3 {[%clk 0:00:22.3]} 70. Kd2 {[%clk 0:00:20.8]} 70... Kb2 {[%clk
0:00:22.9]} 71. Kd3 {[%clk 0:00:20.9]} 71... a3 {[%clk 0:00:23.8]} 72. Kd4
{[%clk 0:00:20.7]} 72... a2 {[%clk 0:00:24.7]} 73. Kc5 {[%clk 0:00:20.9]} 73...
a1=Q {[%clk 0:00:25.6]} 74. Kxb5 {[%clk 0:00:21.3]} 74... Qa3 {[%clk 0:00:25.7]}
75. Kc6 {[%clk 0:00:21]} 75... Qc3+ {[%clk 0:00:26]} 76. Kd5 {[%clk 0:00:20.8]}
76... Qb4 {[%clk 0:00:26.1]} 77. Kc6 {[%clk 0:00:20.5]} 77... Kc3 {[%clk
0:00:27]} 78. Kd5 {[%clk 0:00:20.5]} 78... Kd3 {[%clk 0:00:27.3]} 79. Ke5 {[%clk
0:00:20]} 79... Qd4+ {[%clk 0:00:27.2]} 80. Kf5 {[%clk 0:00:19.7]} 80... Ke3
{[%clk 0:00:27.9]} 81. Ke6 {[%clk 0:00:19.5]} 81... Kf4 {[%clk 0:00:27.9]} 82.
Kf7 {[%clk 0:00:18.7]} 82... Qb6 {[%clk 0:00:28.5]} 83. Kg7 {[%clk 0:00:18.3]}
83... Ke5 {[%clk 0:00:29.4]} 84. Kh7 {[%clk 0:00:17.7]} 84... Qg1 {[%clk
0:00:28.5]} 85. Kh8 {[%clk 0:00:17.1]} 85... Kf6 {[%clk 0:00:29.2]} 86. Kh7
{[%clk 0:00:17.3]} 86... Qg7# {[%clk 0:00:29.5]} 0-1

[Event "Early-Titled-Tuesday-Blitz-February-06-2024"]
[Site "Chess.com"]
[Date "2024.02.06"]
[Round "1"]
[White "Paladin61"]
[Black "mkllnd1517"]
[Result "1-0"]
[WhiteElo "2679"]
[BlackElo "2366"]
[TimeControl "180+1"]
[EndTime "8:08:55 PST"]
[Termination "Paladin61 won by resignation"]

1. e4 {[%clk 0:03:00]} 1... e6 {[%clk 0:02:58.7]} 2. d4 {[%clk 0:02:49.9]} 2...
d5 {[%clk 0:02:59]} 3. Bd3 {[%clk 0:02:45.3]} 3... dxe4 {[%clk 0:02:58.6]} 4.
Bxe4 {[%clk 0:02:46.2]} 4... Nf6 {[%clk 0:02:59.1]} 5. Bf3 {[%clk 0:02:46.8]}
5... c5 {[%clk 0:02:59.5]} 6. Ne2 {[%clk 0:02:46.9]} 6... Nc6 {[%clk 0:03:00]}
7. Be3 {[%clk 0:02:39.5]} 7... cxd4 {[%clk 0:03:00]} 8. Nxd4 {[%clk 0:02:39.8]}
8... Ne5 {[%clk 0:03:00.6]} 9. Nc3 {[%clk 0:02:37.9]} 9... Bb4 {[%clk
0:03:00.7]} 10. O-O {[%clk 0:02:33.2]} 10... O-O {[%clk 0:02:51.7]} 11. Ne4
{[%clk 0:02:21.9]} 11... Nxf3+ {[%clk 0:02:05.7]} 12. Qxf3 {[%clk 0:02:22.8]}
12... Nd5 {[%clk 0:02:05.9]} 13. c3 {[%clk 0:02:17.1]} 13... Be7 {[%clk
0:02:05]} 14. Rad1 {[%clk 0:02:15.8]} 14... Bd7 {[%clk 0:02:04.4]} 15. Rfe1
{[%clk 0:02:09.3]} 15... a6 {[%clk 0:01:59]} 16. c4 {[%clk 0:02:06.3]} 16...
Nxe3 {[%clk 0:01:58.8]} 17. Qxe3 {[%clk 0:02:05.5]} 17... Qc7 {[%clk 0:01:58.5]}
18. b3 {[%clk 0:01:59.3]} 18... Rfd8 {[%clk 0:01:57.9]} 19. Qg3 {[%clk
0:01:50.6]} 19... Qxg3 {[%clk 0:01:52.7]} 20. hxg3 {[%clk 0:01:51.5]} 20... Be8
{[%clk 0:01:50.1]} 21. g4 {[%clk 0:01:44.5]} 21... Bb4 {[%clk 0:01:47.6]} 22.
Rf1 {[%clk 0:01:44.3]} 22... e5 {[%clk 0:01:32.5]} 23. Nf5 {[%clk 0:01:40.9]}
23... Bc6 {[%clk 0:01:27.3]} 24. Ned6 {[%clk 0:01:32.7]} 24... Kf8 {[%clk
0:01:22.2]} 25. f4 {[%clk 0:01:11.3]} 25... g6 {[%clk 0:01:03.7]} 26. fxe5
{[%clk 0:01:10.1]} 26... gxf5 {[%clk 0:01:03]} 27. Rxf5 {[%clk 0:01:04]} 27...
Bxd6 {[%clk 0:01:02.4]} 28. exd6 {[%clk 0:01:04.9]} 28... Bd7 {[%clk 0:00:58.4]}
29. Rf4 {[%clk 0:00:59.6]} 29... Be6 {[%clk 0:00:55.9]} 30. Kf2 {[%clk
0:00:56.3]} 30... Rac8 {[%clk 0:00:55.8]} 31. Kg3 {[%clk 0:00:51]} 31... Ke8
{[%clk 0:00:51.5]} 32. Rfd4 {[%clk 0:00:45.3]} 32... Kd7 {[%clk 0:00:51.5]} 33.
Kf4 {[%clk 0:00:45.3]} 33... Rg8 {[%clk 0:00:51.3]} 34. Kf3 {[%clk 0:00:41.7]}
34... Rg7 {[%clk 0:00:40.8]} 35. Rh1 {[%clk 0:00:40.1]} 35... Rc6 {[%clk
0:00:37.1]} 36. Rhd1 {[%clk 0:00:38]} 36... Rc5 {[%clk 0:00:37]} 37. Rf4 {[%clk
0:00:37.4]} 37... Rcg5 {[%clk 0:00:36.2]} 38. Rdd4 {[%clk 0:00:37.4]} 38... Ra5
{[%clk 0:00:29.1]} 39. Rd2 {[%clk 0:00:33.1]} 39... Rag5 {[%clk 0:00:26.4]} 40.
Rdd4 {[%clk 0:00:33]} 40... b5 {[%clk 0:00:27.1]} 41. cxb5 {[%clk 0:00:28.9]}
41... axb5 {[%clk 0:00:28]} 42. a4 {[%clk 0:00:26.6]} 42... bxa4 {[%clk
0:00:27.3]} 43. bxa4 {[%clk 0:00:26.8]} 43... Rg8 {[%clk 0:00:28]} 44. Kg3
{[%clk 0:00:21.5]} 44... Rb8 {[%clk 0:00:23.5]} 45. Kh4 {[%clk 0:00:21.4]} 45...
h6 {[%clk 0:00:22.5]} 46. Rf6 {[%clk 0:00:20.2]} 46... Rg6 {[%clk 0:00:13.2]}
47. Rf2 {[%clk 0:00:20.5]} 47... Rb3 {[%clk 0:00:10.6]} 48. Rc2 {[%clk
0:00:19.2]} 48... Rb7 {[%clk 0:00:09.8]} 49. a5 {[%clk 0:00:19]} 49... Ra7
{[%clk 0:00:09.7]} 50. Rc5 {[%clk 0:00:19.3]} 50... Rg5 {[%clk 0:00:07.2]} 51.
Rxg5 {[%clk 0:00:09.3]} 51... hxg5+ {[%clk 0:00:08.1]} 52. Kxg5 {[%clk
0:00:10.1]} 52... Rxa5+ {[%clk 0:00:08.9]} 53. Kf6 {[%clk 0:00:10.7]} 53... Ra1
{[%clk 0:00:07]} 54. Rf4 {[%clk 0:00:06]} 54... Kxd6 {[%clk 0:00:06.5]} 55. g5
{[%clk 0:00:06.4]} 55... Rg1 {[%clk 0:00:03.7]} 56. Rf2 {[%clk 0:00:06.2]} 56...
Re1 {[%clk 0:00:03.4]} 57. g6 {[%clk 0:00:05.6]} 57... fxg6 {[%clk 0:00:02.6]}
58. Kxg6 {[%clk 0:00:06.5]} 58... Re5 {[%clk 0:00:02.8]} 59. Kf6 {[%clk
0:00:06.1]} 59... Rd5 {[%clk 0:00:02.8]} 60. Re2 {[%clk 0:00:05.8]} 60... Bd7
{[%clk 0:00:03.5]} 61. Re4 {[%clk 0:00:05.4]} 61... Rf5+ {[%clk 0:00:04]} 62.
Kg6 {[%clk 0:00:05.6]} 62... Rf2 {[%clk 0:00:04.6]} 63. Rd4+ {[%clk 0:00:05.4]}
63... Ke7 {[%clk 0:00:03.4]} 64. g4 {[%clk 0:00:06]} 64... Be6 {[%clk
0:00:03.5]} 65. Re4 {[%clk 0:00:06.2]} 65... Rf6+ {[%clk 0:00:03.4]} 66. Kg5
{[%clk 0:00:06.3]} 66... Kf7 {[%clk 0:00:03.1]} 67. Ra4 {[%clk 0:00:05.4]} 67...
Bd7 {[%clk 0:00:02]} 68. Ra7 {[%clk 0:00:04.3]} 68... Rd6 {[%clk 0:00:02.5]} 69.
Ra5 {[%clk 0:00:04]} 69... Rd5+ {[%clk 0:00:03.4]} 70. Rxd5 {[%clk 0:00:03.8]}
70... Be6 {[%clk 0:00:04.3]} 71. Re5 {[%clk 0:00:04.1]} 71... Ke7 {[%clk
0:00:04.8]} 72. Rxe6+ {[%clk 0:00:03.6]} 72... Kxe6 {[%clk 0:00:05.7]} 1-0